Workbook

Sheet Sheet1
N2: FALSE | O2: FALSE
C3: Convert lengths to # of sleeves/cases | F3: Use Wedges | H3: Enter length (in inches) | J3: Enter # of Rows | N3: 1.75 | O3: 1
F4: UseStoppers | H4: 23.375 | J4: 1
C6: Sleeve Type | D6: Data (1 disc) | E6: Data Double (2 discs) | F6: Classic/Poly | G6: CD Pro | H6: Video CD | I6: DVD2 | J6: DVD Pro | K6: HiDef Pro
C7: # of Sleeves | D7: =ROUNDDOWN(($H$4-IF(With_CanAm_Stopper,Stopper_width,0)-IF(With_Wedges,Wedge_Width,0))*D8,0)*$J$4 -> 220 | E7: 170 | F7: 212 | G7: 177 | H7: 160 | I7: 160 | J7: 153 | K7: 153
C8: Factor | D8: =10/1.0625 -> 9.411764706 | E8: =10/1.375 -> 7.272727273 | F8: =100/11 -> 9.090909091 | G8: =100/11/6*5 -> 7.575757576 | H8: =6/7*8 -> 6.857142857 | I8: =6/7*8 -> 6.857142857 | J8: =18/2.75 -> 6.545454545 | K8: =18/2.75 -> 6.545454545
C9: Hard Case | D9: CD/DVD Jewel Case | E9: Amaray | F9: Blu-ray | G9: THINpak™ | H9: CardBoard Case | I9: Steelbox | J9: Vinyl
C10: # of Cases | D10: =ROUNDDOWN(($H$4-IF(With_CanAm_Stopper,Stopper_width,0)-IF(With_Wedges,Wedge_Width,0))*D11,0)*$J$4 -> 57 | E10: =ROUNDDOWN(($H$4-IF(With_CanAm_Stopper,Stopper_width,0)-IF(With_Wedges,Wedge_Width,0))*E11,0)*$J$4 -> 38 | F10: 46 | G10: 93 | H10: =ROUNDDOWN(($H$4-IF(With_CanAm_Stopper,Stopper_width,0)-IF(With_Wedges,Wedge_Width,0))*H11,0)*$J$4 -> 45 | I10: =ROUNDDOWN(($H$4-IF(With_CanAm_Stopper,Stopper_width,0)-IF(With_Wedges,Wedge_Width,0))*I11,0)*$J$4 -> 37 | J10: =ROUNDDOWN(($H$4-IF(With_CanAm_Stopper,Stopper_width,0)-IF(With_Wedges,Wedge_Width,0))*J11,0)*$J$4 -> 165
C11: Factor | D11: =10/4.0625 -> 2.461538462 | E11: =8/4.8125 -> 1.662337662 | F11: 2 | G11: =1/0.25 -> 4 | H11: =25.4/13 -> 1.953846154 | I11: =25.4/16 -> 1.5875 | J11: =7.1 -> 7.1

Sheet Sheet2

Sheet Sheet3
